fUSD/lending_fUSD_20260509
["ID","MTS","AMOUNT","RATE_DAILY","PERIOD"]
[421909733,1778326239000,-945.67308784,0.00014333,2]
[421909727,1778326239000,-945.67308784,0.00014333,2]
[421909735,1778326239000,-945.67308784,0.00014333,2]
[421909731,1778326239000,-945.67308784,0.00014333,2]
[421909723,1778326239000,-945.67308784,0.00014333,2]
[421909740,1778326239000,-945.67308784,0.00014333,2]
[421909742,1778326239000,-46710.99475274,0.000149,2]
[421909762,1778326239000,-2837.29913756,0.000149,2]
[421909764,1778326239000,-380.52932165,0.000149,2]
[421909729,1778326239000,-945.67308784,0.00014333,2]
[421909759,1778326239000,-325.876385,0.000149,2]
[421909766,1778326239000,-357.39631745,0.000149,2]
[421909738,1778326239000,-945.67308784,0.00014333,2]
[421909775,1778326240000,-258.117,0.000149,2]
[421909774,1778326240000,-750.0,0.000149,2]
[421909777,1778326240000,-1208.62553117,0.000149,2]
[421909776,1778326240000,-265.56721808,0.000149,2]
[421909779,1778326240000,-2636.77675211,0.000149,2]
[421909780,1778326240000,-483.65945066,0.000149,2]
[421909778,1778326240000,-1151.15977822,0.000149,2]
[421909781,1778326241000,-1655.35490122,0.000149,2]
[421909787,1778326242000,160.0,0.000301,120]
[421909789,1778326243000,160.0,0.000301,120]
[421909791,1778326246000,-9728.34221662,0.000149,2]
[421909792,1778326246000,-303.86722135,0.000149,2]
[421909790,1778326246000,-444.38778338,0.000149,2]
[421909794,1778326247000,-7661.08249758,0.000149,2]
[421909793,1778326247000,-812.2055215,0.000149,2]
[421909805,1778326260000,160.0,0.000301,120]
[421909806,1778326318000,220.0,0.00030137,120]
[421909808,1778326419000,470.9758,0.00030136,120]
[421909810,1778326505000,-2000.0,0.00014235,2]
[421909811,1778326610000,-2500.0,0.00014235,2]
[421909814,1778326611000,-2500.0,0.00014497,2]
[421909812,1778326611000,-214.73073128,0.0001424,2]
[421909813,1778326611000,-2285.26926872,0.00014497,2]
[421909815,1778326612000,-214.73073128,0.00014242,2]
[421909816,1778326612000,-150.0,0.00014427,2]
[421909817,1778326612000,-969.90073128,0.00014497,2]
[421909818,1778326612000,-724.2,0.00014497,2]
[421909819,1778326612000,-441.16853744,0.00014497,2]
[421909822,1778326612000,-493.40789401,0.0001453,2]
[421909820,1778326612000,-213.24146256,0.00014497,2]
[421909823,1778326612000,-300.0,0.00014567,2]
[421909821,1778326612000,-150.0,0.00014504,2]
[421909824,1778326613000,-304.32,0.00014591,2]
[421909825,1778326613000,-1039.03064343,0.00014602,2]
[421909827,1778326613000,-164.463,0.00014602,2]
[421909830,1778326613000,-435.07921155,0.00014754,2]
[421909829,1778326613000,-474.3554,0.000147,2]
[421909826,1778326613000,-453.39035657,0.00014602,2]
[421909831,1778326613000,-804.22203188,0.000148,2]
[421909832,1778326613000,-250.0,0.00014237,2]
[421909834,1778326613000,-2000.0,0.000148,2]
[421909833,1778326613000,-250.0,0.00014328,2]
[421909828,1778326613000,-168.49,0.00014698,2]
[421909839,1778326614000,-251.3995326,0.00014799,2]
[421909840,1778326614000,-1997.2009348,0.000148,2]
[421909838,1778326614000,-251.3995326,0.0001447,2]
[421909836,1778326614000,-2195.77796812,0.000148,2]
[421909837,1778326614000,-52.82249926,0.000148,2]
[421909835,1778326614000,-251.39953262,0.0001414,2]
[421909841,1778326626000,2500.0,0.00030137,120]
[421909843,1778326764000,2000.0,0.00030137,120]
[421909871,1778327431000,-2000.0,0.000143,2]
[421909865,1778327431000,-450.0,0.00013933,2]
[421909867,1778327431000,-250.0,0.00014,2]
[421909866,1778327431000,-11179.17,0.00013933,2]
[421909868,1778327431000,-321.67,0.00014005,2]
[421909874,1778327431000,-2080.17592889,0.000145,2]
[421909872,1778327431000,-200.0,0.000145,2]
[421909869,1778327431000,-31852.56,0.00014123,2]
[421909875,1778327431000,-158.13,0.00014589,2]
[421909864,1778327431000,-1200.0,0.00013932,2]
[421909870,1778327431000,-500.0,0.00014131,2]
[421909877,1778327431000,-2000.0,0.00014659,2]
[421909876,1778327431000,-152.0,0.00014605,7]
[421909879,1778327431000,-150.0,0.00014692,2]
[421909878,1778327431000,-446.53624138,0.00014692,2]
[421909881,1778327431000,-63838.1862881,0.00014693,2]
[421909882,1778327431000,-4378.50121158,0.00014699,2]
[421909884,1778327431000,-3212.00933109,0.000147,2]
[421909883,1778327431000,-4368.3682338,0.000147,2]
[421909880,1778327431000,-985.3280253,0.00014693,2]
[421909873,1778327431000,-500.0,0.000145,2]
[421909885,1778327432000,-172.26154201,0.00014726,2]
[421909886,1778327432000,-500.0,0.00014799,2]
[421909888,1778327432000,-350.50854249,0.00014799,2]
[421909887,1778327432000,-500.0,0.00014799,2]
[421909889,1778327432000,-500.0,0.00014799,2]
[421909890,1778327432000,-256225.49212024,0.000148,2]
[421909891,1778327432000,-474.41347366,0.000148,2]
[421909892,1778327437000,-981.56,0.000148,2]
[421909894,1778327438000,-2837.29913756,0.000148,2]
[421909895,1778327438000,-380.52932165,0.000148,2]
[421909893,1778327438000,-445.39199628,0.000148,2]
[421910190,1778327440000,-547.41475222,0.000148,2]
[421910438,1778327442000,-3287.0,0.000148,2]
[421910813,1778327445000,-380.16870129,0.000148,2]
[421910817,1778327445000,-2430.59892602,0.000148,2]
[421910815,1778327445000,-837.497831,0.000148,2]
[421910819,1778327445000,-1401.99705,0.000148,2]
[421910811,1778327445000,-225.37,0.00014497,2]
[421910826,1778327445000,-279.458431,0.000148,2]
[421910821,1778327445000,-845.0235,0.000148,2]
[421910823,1778327445000,-1614.468702,0.000148,2]
[421910828,1778327445000,-408.785,0.000148,2]
[421910856,1778327446000,-7475.25,0.000148,2]
[421912550,1778327789000,1000.0,0.0003013,120]
[421912551,1778327791000,1000.0,0.0003013,120]
[421912552,1778327793000,1000.0,0.0003013,120]
[421912553,1778327804000,1000.0,0.0003013,120]
[421912556,1778327866000,166.58,9.291e-05,2]
[421912555,1778327866000,166.58,6.968e-05,2]
[421912570,1778328384000,3144.0,0.00030136,120]
[421912571,1778328448000,300.0,0.000109,3]
[421912572,1778328450000,600.0,0.000118,4]
[421912573,1778328453000,900.0,0.000119,4]
[421912576,1778328631000,-150.0,0.00010698,2]
[421912579,1778328631000,-500.0,0.00010699,2]
[421912578,1778328631000,-1200.0,0.00010698,2]
[421912582,1778328631000,-500.0,0.00010699,2]
[421912580,1778328631000,-296.40438979,0.00010699,2]
[421912581,1778328631000,-500.0,0.00010699,2]
[421912585,1778328631000,-500.0,0.00010699,2]
[421912584,1778328631000,-227.28846108,0.00010699,2]
[421912583,1778328631000,-529.1492217,0.00010699,2]
[421912587,1778328631000,-500.0,0.00010699,2]
[421912577,1778328631000,-300.0,0.00010698,2]
[421912586,1778328631000,-500.0,0.00010699,2]
[421912590,1778328631000,-500.0,0.00010699,2]
[421912589,1778328631000,-500.0,0.00010699,2]
[421912588,1778328631000,-500.0,0.00010699,2]
[421912601,1778328631000,-500.0,0.00010699,2]
[421912600,1778328631000,-500.0,0.00010699,2]
[421912599,1778328631000,-500.0,0.00010699,2]
[421912597,1778328631000,-500.0,0.00010699,2]
[421912598,1778328631000,-500.0,0.00010699,2]
[421912593,1778328631000,-610.69330608,0.00010699,2]
[421912595,1778328631000,-500.0,0.00010699,2]
[421912592,1778328631000,-500.0,0.00010699,2]
[421912596,1778328631000,-500.0,0.00010699,2]
[421912591,1778328631000,-500.0,0.00010699,2]
[421912594,1778328631000,-500.0,0.00010699,2]
[421912629,1778328632000,-1178.49837266,0.00010699,2]
[421912623,1778328632000,-1178.49837266,0.00010699,2]
[421912626,1778328632000,-1178.49837266,0.00010699,2]
[421912627,1778328632000,-1178.49837266,0.00010699,2]
[421912631,1778328632000,-1178.49837266,0.00010699,2]
[421912630,1778328632000,-1178.49837266,0.00010699,2]
[421912634,1778328632000,-1178.49837266,0.00010699,2]
[421912640,1778328632000,-1178.49837266,0.00010699,2]
[421912637,1778328632000,-1178.49837266,0.00010699,2]
[421912636,1778328632000,-1178.49837266,0.00010699,2]
[421912632,1778328632000,-1178.49837266,0.00010699,2]
[421912638,1778328632000,-1178.49837266,0.00010699,2]
[421912622,1778328632000,-1178.49837266,0.00010699,2]
[421912639,1778328632000,-1178.49837266,0.00010699,2]
[421912633,1778328632000,-1178.49837266,0.00010699,2]
[421912635,1778328632000,-1178.49837266,0.00010699,2]
[421912625,1778328632000,-1178.49837266,0.00010699,2]
[421912641,1778328632000,-1178.49837266,0.00010699,2]
[421912621,1778328632000,-1178.49837266,0.00010699,2]
[421912603,1778328632000,-500.0,0.00010699,2]
[421912604,1778328632000,-500.0,0.00010699,2]
[421912605,1778328632000,-500.0,0.00010699,2]
[421912611,1778328632000,-500.0,0.00010699,2]
[421912606,1778328632000,-500.0,0.00010699,2]
[421912610,1778328632000,-500.0,0.00010699,2]
[421912607,1778328632000,-500.0,0.00010699,2]
[421912624,1778328632000,-1178.49837266,0.00010699,2]
[421912608,1778328632000,-500.0,0.00010699,2]
[421912613,1778328632000,-500.0,0.00010699,2]
[421912612,1778328632000,-500.0,0.00010699,2]
[421912614,1778328632000,-500.0,0.00010699,2]
[421912616,1778328632000,-500.0,0.00010699,2]
[421912618,1778328632000,-1178.49837266,0.00010699,2]
[421912617,1778328632000,-500.0,0.00010699,2]
[421912619,1778328632000,-1178.49837266,0.00010699,2]
[421912609,1778328632000,-500.0,0.00010699,2]
[421912643,1778328632000,-1178.49837266,0.00010699,2]
[421912615,1778328632000,-500.0,0.00010699,2]
[421912644,1778328632000,-1178.49837266,0.00010699,2]
[421912662,1778328632000,-1149.03591335,0.00010699,2]
[421912666,1778328632000,-1149.03591335,0.00010699,2]
[421912667,1778328632000,-1149.03591335,0.00010699,2]
[421912668,1778328632000,-1149.03591335,0.00010699,2]
[421912669,1778328632000,-1149.03591335,0.00010699,2]
[421912670,1778328632000,-1149.03591335,0.00010699,2]
[421912672,1778328632000,-1149.03591335,0.00010699,2]
[421912661,1778328632000,-1149.03591335,0.00010699,2]
[421912671,1778328632000,-1149.03591335,0.00010699,2]
[421912675,1778328632000,-1149.03591335,0.00010699,2]
[421912673,1778328632000,-1149.03591335,0.00010699,2]
[421912676,1778328632000,-1149.03591335,0.00010699,2]
[421912678,1778328632000,-1149.03591335,0.00010699,2]
[421912679,1778328632000,-1149.03591328,0.00010699,2]
[421912677,1778328632000,-1149.03591335,0.00010699,2]
[421912680,1778328632000,-23127.48543092,0.000107,2]
[421912674,1778328632000,-1149.03591335,0.00010699,2]
[421912658,1778328632000,-1149.03591335,0.00010699,2]
[421912642,1778328632000,-1178.49837266,0.00010699,2]
[421912660,1778328632000,-1149.03591335,0.00010699,2]
[421912645,1778328632000,-1178.49837266,0.00010699,2]
[421912646,1778328632000,-1178.49837266,0.00010699,2]
[421912647,1778328632000,-1178.49837266,0.00010699,2]
[421912650,1778328632000,-1178.49837266,0.00010699,2]
[421912649,1778328632000,-1178.49837266,0.00010699,2]
[421912648,1778328632000,-1178.49837266,0.00010699,2]
[421912652,1778328632000,-1178.49837266,0.00010699,2]
[421912651,1778328632000,-1178.49837266,0.00010699,2]
[421912664,1778328632000,-1149.03591335,0.00010699,2]
[421912655,1778328632000,-1178.49837266,0.00010699,2]
[421912657,1778328632000,-1149.03591335,0.00010699,2]
[421912653,1778328632000,-1178.49837266,0.00010699,2]
[421912656,1778328632000,-1149.03591335,0.00010699,2]
[421912659,1778328632000,-1149.03591335,0.00010699,2]
[421912665,1778328632000,-1149.03591335,0.00010699,2]
[421912663,1778328632000,-1149.03591335,0.00010699,2]
[421912654,1778328632000,-1178.49837266,0.00010699,2]
[421912689,1778328638000,-2488.11649926,0.000107,2]
[421912688,1778328638000,-380.52932165,0.000107,2]
[421912687,1778328638000,-27128.50850731,0.000107,2]
[421912686,1778328638000,-2480.69075194,0.000107,2]
[421912860,1778328640000,-875.50000001,0.000107,2]
[421912861,1778328640000,-2742.37269276,0.000107,2]
[421912859,1778328640000,-1152.38968876,0.000107,2]
[421912880,1778328646000,-8648.41889449,0.000107,2]
[421912877,1778328646000,-339.39253979,0.000107,2]
[421912878,1778328646000,-12430.712656,0.000107,2]
[421912879,1778328646000,-4084.19095138,0.000107,2]
[421912888,1778328660000,276.83,6.806e-05,2]
[421912887,1778328660000,276.83,6.51e-05,2]
[421912886,1778328660000,276.83,6.214e-05,2]
[421912885,1778328660000,276.83,5.918e-05,2]
[421912884,1778328660000,276.83,5.622e-05,2]
[421912891,1778328661000,276.83,7.694e-05,2]
[421912890,1778328661000,276.83,7.398e-05,2]
[421912889,1778328661000,276.83,7.102e-05,2]
[421912892,1778328661000,276.83,7.99e-05,2]
[421912895,1778328662000,276.83,8.878e-05,2]
[421912894,1778328662000,276.83,8.582e-05,2]
[421912893,1778328662000,276.83,8.286e-05,2]
[421912898,1778328663000,276.83,9.765e-05,2]
[421912897,1778328663000,276.83,9.469e-05,2]
[421912896,1778328663000,276.83,9.173e-05,2]
[421912899,1778328666000,-171.31269531,0.00010061,2]
[421912900,1778328669000,-105.51730469,0.00010061,2]
[421912901,1778328669000,-62.65004286,0.00010357,2]
[421912902,1778328908000,194.99332264,0.00030137,120]
[421912903,1778328929000,152.0,0.00010609,30]
[421912913,1778329266000,-370.52298505,0.00010251,2]
[421912914,1778329269000,-383.08,0.00010251,2]
[421912916,1778329346000,20487.16,9.966e-05,2]
[421912917,1778329367000,303.17,0.00030082,120]
[421912919,1778329454000,-214.17995714,0.00010357,2]
[421912918,1778329454000,-1468.62701495,0.00010251,2]
[421912921,1778329454000,-1466.33,0.00010471,2]
[421912922,1778329454000,-2222.23,0.00010508,2]
[421912923,1778329454000,-991.91,0.0001057,2]
[421912924,1778329454000,-276.83,0.00010653,2]
[421912926,1778329454000,-300.0,0.00010684,2]
[421912925,1778329454000,-500.0,0.00010677,2]
[421912920,1778329454000,-492.61,0.00010425,2]
[421912928,1778329454000,-151.0,0.00010697,2]
[421912929,1778329454000,-1200.0,0.00010697,2]
[421912932,1778329454000,-1001.66957048,0.00010699,2]
[421912930,1778329454000,-150.0,0.00010698,2]
[421912931,1778329454000,-462.46778028,0.00010699,2]
[421912933,1778329454000,-192.61419099,0.00010699,2]
[421912935,1778329454000,-500.0,0.00010699,2]
[421912934,1778329454000,-500.0,0.00010699,2]
[421912927,1778329454000,-2544.6653,0.00010685,2]
[421912951,1778329455000,-500.0,0.00010699,2]
[421912950,1778329455000,-500.0,0.00010699,2]
[421912949,1778329455000,-500.0,0.00010699,2]
[421912948,1778329455000,-500.0,0.00010699,2]
[421912947,1778329455000,-500.0,0.00010699,2]
[421912946,1778329455000,-500.0,0.00010699,2]
[421912945,1778329455000,-500.0,0.00010699,2]
[421912939,1778329455000,-258.7660773,0.00010699,2]
[421912942,1778329455000,-500.0,0.00010699,2]
[421912943,1778329455000,-500.0,0.00010699,2]
[421912941,1778329455000,-500.0,0.00010699,2]
[421912940,1778329455000,-500.0,0.00010699,2]
[421912938,1778329455000,-500.0,0.00010699,2]
[421912937,1778329455000,-500.0,0.00010699,2]
[421912936,1778329455000,-500.0,0.00010699,2]
[421912952,1778329455000,-500.0,0.00010699,2]
[421912953,1778329455000,-500.0,0.00010699,2]
[421912944,1778329455000,-500.0,0.00010699,2]
[421912955,1778329455000,-500.0,0.00010699,2]
[421912972,1778329455000,-500.0,0.00010699,2]
[421912971,1778329455000,-580.04173227,0.00010699,2]
[421912970,1778329455000,-500.0,0.00010699,2]
[421912968,1778329455000,-150.0,0.00010699,2]
[421912969,1778329455000,-150.0,0.00010699,2]
[421912967,1778329455000,-150.0,0.00010699,2]
[421912965,1778329455000,-500.0,0.00010699,2]
[421912964,1778329455000,-209.10192276,0.00010699,2]
[421912954,1778329455000,-500.0,0.00010699,2]
[421912963,1778329455000,-500.0,0.00010699,2]
[421912962,1778329455000,-500.0,0.00010699,2]
[421912960,1778329455000,-500.0,0.00010699,2]
[421912961,1778329455000,-207.48307285,0.00010699,2]
[421912959,1778329455000,-500.0,0.00010699,2]
[421912958,1778329455000,-500.0,0.00010699,2]
[421912957,1778329455000,-500.0,0.00010699,2]
[421912956,1778329455000,-500.0,0.00010699,2]
[421912966,1778329455000,-570.40445519,0.00010699,2]
[421912987,1778329456000,-580.04173227,0.00010699,2]
[421912988,1778329456000,-500.0,0.00010699,2]
[421912986,1778329456000,-500.0,0.00010699,2]
[421912985,1778329456000,-580.04173227,0.00010699,2]
[421912984,1778329456000,-500.0,0.00010699,2]
[421912982,1778329456000,-500.0,0.00010699,2]
[421912981,1778329456000,-580.04173227,0.00010699,2]
[421912976,1778329456000,-500.0,0.00010699,2]
[421912979,1778329456000,-580.04173227,0.00010699,2]
[421912977,1778329456000,-580.04173227,0.00010699,2]
[421912978,1778329456000,-500.0,0.00010699,2]
[421912989,1778329456000,-580.04173227,0.00010699,2]
[421912975,1778329456000,-580.04173227,0.00010699,2]
[421912974,1778329456000,-500.0,0.00010699,2]
[421912973,1778329456000,-580.04173227,0.00010699,2]
[421912980,1778329456000,-500.0,0.00010699,2]
[421912990,1778329456000,-500.0,0.00010699,2]
[421912983,1778329456000,-580.04173227,0.00010699,2]
[421912991,1778329456000,-580.04173227,0.00010699,2]
[421913008,1778329456000,-500.0,0.00010699,2]
[421912992,1778329456000,-500.0,0.00010699,2]
[421913007,1778329456000,-164.464,0.00010699,2]
[421913006,1778329456000,-1193.936,0.00010699,2]
[421913005,1778329456000,-580.04173227,0.00010699,2]
[421913004,1778329456000,-500.0,0.00010699,2]
[421913001,1778329456000,-500.0,0.00010699,2]
[421913002,1778329456000,-500.0,0.00010699,2]
[421913003,1778329456000,-580.04173227,0.00010699,2]
[421912998,1778329456000,-500.0,0.00010699,2]
[421912993,1778329456000,-580.04173227,0.00010699,2]
[421913000,1778329456000,-580.04173227,0.00010699,2]
[421912994,1778329456000,-500.0,0.00010699,2]
[421912996,1778329456000,-500.0,0.00010699,2]
[421912995,1778329456000,-580.04173227,0.00010699,2]
[421912997,1778329456000,-580.04173227,0.00010699,2]
[421912999,1778329456000,-580.04173227,0.00010699,2]
[421913019,1778329457000,-3496.64818621,0.000109,2]
[421913026,1778329457000,-3931.53141042,0.00011099,2]
[421913024,1778329457000,-2222.23,0.0001102,2]
[421913021,1778329457000,-150.0,0.00010959,2]
[421913023,1778329457000,-2000.0,0.00010983,2]
[421913022,1778329457000,-500.0,0.00010973,2]
[421913020,1778329457000,-276.83,0.00010949,2]
[421913025,1778329457000,-254.91,0.0001106,2]
[421913018,1778329457000,-24291.21,0.00010829,2]
[421913009,1778329457000,-580.04173227,0.00010699,2]
[421913016,1778329457000,-689613.12743586,0.000107,2]
[421913015,1778329457000,-580.04173227,0.00010699,2]
[421913014,1778329457000,-500.0,0.00010699,2]
[421913012,1778329457000,-500.0,0.00010699,2]
[421913013,1778329457000,-580.04173227,0.00010699,2]
[421913011,1778329457000,-580.04173227,0.00010699,2]
[421913010,1778329457000,-500.0,0.00010699,2]
[421913027,1778329457000,-4575.45590586,0.00011099,2]
[421913017,1778329457000,-2222.23,0.00010764,2]
[421913029,1778329457000,-500.0,0.00011247,2]
[421913044,1778329457000,-432.3927195,0.00011939,2]
[421913030,1778329457000,-2222.23,0.00011277,2]
[421913050,1778329457000,-83716.6143798,0.00012,2]
[421913048,1778329457000,-500.0,0.00011973,2]
[421913028,1778329457000,-276.83,0.00011245,2]
[421913047,1778329457000,-507.8359358,0.00011973,2]
[421913046,1778329457000,-500.0,0.00011973,2]
[421913043,1778329457000,-5000.0,0.000119,2]
[421913042,1778329457000,-1680.0,0.00011767,2]
[421913040,1778329457000,-255.0,0.00011736,2]
[421913039,1778329457000,-492.61,0.00011728,2]
[421913045,1778329457000,-498.6075937,0.00011939,2]
[421913038,1778329457000,-500.0,0.00011613,2]
[421913041,1778329457000,-420.0,0.00011744,2]
[421913031,1778329457000,-250.0,0.00011277,2]
[421913032,1778329457000,-500.0,0.00011277,2]
[421913033,1778329457000,-250.0,0.00011277,2]
[421913049,1778329457000,-155.86383987,0.0001199,2]
[421913037,1778329457000,-166.58,0.00011613,2]
[421913035,1778329457000,-609.58332608,0.00011521,2]
[421913036,1778329457000,-553.77,0.00011574,2]
[421913034,1778329457000,-255.681201,0.00011277,2]
[421913057,1778329464000,179.23,6.607e-05,2]
[421913058,1778329465000,179.23,8.809e-05,2]
[421913062,1778329521000,-5000.0,0.000119,2]
[421913063,1778329521000,-371.0,0.00011999,2]
[421913061,1778329521000,-179.23,0.00011011,2]
[421913064,1778329521000,-563369.72826773,0.00012,2]
[421913060,1778329521000,-580.04173227,0.00010699,2]
[421913059,1778329521000,-500.0,0.00010699,2]
[421913065,1778329578000,320.0,0.00012,3]
[421913066,1778329635000,-151.0,0.00011997,2]
[421913068,1778329635000,-30288.59187381,0.00012,2]
[421913067,1778329635000,-150.0,0.00011999,2]
[421913069,1778329650000,320.0,0.00012,3]
[421913070,1778329804000,152.0,0.00011921,30]
[421913071,1778329805000,152.0,0.00011921,30]
[421913076,1778329831000,-96.1617191,0.00011999,2]
[421913075,1778329831000,-1103.8382809,0.00011999,2]
[421913074,1778329831000,-300.0,0.00011999,2]
[421913097,1778329832000,-500.0,0.00012227,2]
[421913100,1778329832000,-200.0,0.00012241,2]
[421913101,1778329832000,-303.17,0.00012329,2]
[421913102,1778329832000,-500.0,0.00012329,2]
[421913105,1778329832000,-310.92993535,0.000125,2]
[421913107,1778329832000,-5000.0,0.00012579,2]
[421913120,1778329832000,-420.0,0.00013172,2]
[421913111,1778329832000,-500.0,0.00012603,2]
[421913117,1778329832000,-255.0,0.00013079,2]
[421913099,1778329832000,-4117.91031531,0.00012229,2]
[421913122,1778329832000,-1680.0,0.00013199,2]
[421913125,1778329832000,-179.23,0.00013213,2]
[421913127,1778329832000,-2761.82,0.00013229,2]
[421913128,1778329832000,-150.0,0.00013282,2]
[421913130,1778329832000,-276.88,0.00013319,2]
[421913129,1778329832000,-2000.0,0.00013299,2]
[421913115,1778329832000,-492.61,0.00013031,2]
[421913098,1778329832000,-360.39151883,0.00012227,2]
[421913094,1778329832000,-500.0,0.00012227,2]
[421913093,1778329832000,-500.0,0.00012227,2]
[421913077,1778329832000,-150.0,0.00011999,2]
[421913078,1778329832000,-1002.70757384,0.00012,2]
[421913079,1778329832000,-2287.51677326,0.00012,2]
[421913081,1778329832000,-20965.22552551,0.00012,2]
[421913080,1778329832000,-8644.86836957,0.00012,2]
[421913082,1778329832000,-1515.9028499,0.00012,2]
[421913083,1778329832000,-303.72702952,0.00012,2]
[421913084,1778329832000,-149121.98481081,0.00012,2]
[421913086,1778329832000,-200.0,0.0001212,2]
[421913085,1778329832000,-200.0,0.00012,2]
[421913087,1778329832000,-328.85599757,0.00012128,2]
[421913088,1778329832000,-500.0,0.00012227,2]
[421913091,1778329832000,-500.0,0.00012227,2]
[421913090,1778329832000,-500.0,0.00012227,2]
[421913089,1778329832000,-500.0,0.00012227,2]
[421913095,1778329832000,-500.0,0.00012227,2]
[421913131,1778329832000,-366.0,0.00013433,5]
[421913096,1778329832000,-500.0,0.00012227,2]
[421913132,1778329832000,-167.82,0.00013484,2]
[421913092,1778329832000,-500.0,0.00012227,2]
[421913135,1778329832000,-150.0,0.00013488,2]
[421913158,1778329832000,-151.0,0.000135,2]
[421913157,1778329832000,-500.0,0.000135,2]
[421913160,1778329832000,-151.0,0.000135,2]
[421913161,1778329832000,-500.0,0.000135,2]
[421913162,1778329832000,-151.0,0.000135,2]
[421913159,1778329832000,-500.0,0.000135,2]
[421913164,1778329832000,-151.0,0.000135,2]
[421913163,1778329832000,-500.0,0.000135,2]
[421913165,1778329832000,-151.0,0.000135,2]
[421913166,1778329832000,-151.0,0.000135,2]
[421913169,1778329832000,-151.0,0.000135,2]
[421913168,1778329832000,-500.0,0.000135,2]
[421913171,1778329832000,-151.0,0.000135,2]
[421913170,1778329832000,-500.0,0.000135,2]
[421913173,1778329832000,-151.0,0.000135,2]
[421913133,1778329832000,-150.0,0.00013488,2]
[421913172,1778329832000,-500.0,0.000135,2]
[421913156,1778329832000,-409.70823694,0.000135,2]
[421913155,1778329832000,-151.0,0.000135,2]
[421913167,1778329832000,-151.0,0.000135,2]
[421913154,1778329832000,-500.0,0.000135,2]
[421913134,1778329832000,-150.0,0.00013488,2]
[421913153,1778329832000,-151.0,0.000135,2]
[421913137,1778329832000,-150.0,0.00013488,2]
[421913139,1778329832000,-150.0,0.00013488,2]
[421913138,1778329832000,-150.0,0.00013488,2]
[421913143,1778329832000,-151.0,0.000135,2]
[421913140,1778329832000,-150.0,0.00013488,2]
[421913136,1778329832000,-150.0,0.00013488,2]
[421913142,1778329832000,-500.0,0.000135,2]
[421913141,1778329832000,-200.0,0.000135,2]
[421913146,1778329832000,-500.0,0.000135,2]
[421913145,1778329832000,-151.0,0.000135,2]
[421913147,1778329832000,-151.0,0.000135,2]
[421913149,1778329832000,-500.0,0.000135,2]
[421913151,1778329832000,-500.0,0.000135,2]
[421913152,1778329832000,-500.0,0.000135,2]
[421913148,1778329832000,-500.0,0.000135,2]
[421913144,1778329832000,-500.0,0.000135,2]
[421913150,1778329832000,-151.0,0.000135,2]
[421913210,1778329833000,-500.0,0.00013698,2]
[421913209,1778329833000,-500.0,0.00013698,2]
[421913208,1778329833000,-500.0,0.00013698,2]
[421913207,1778329833000,-500.0,0.00013698,2]
[421913203,1778329833000,-201.90636909,0.00013698,2]
[421913206,1778329833000,-500.0,0.00013698,2]
[421913204,1778329833000,-347.60802052,0.00013698,2]
[421913201,1778329833000,-500.0,0.00013698,2]
[421913212,1778329833000,-422.88900491,0.00013698,2]
[421913205,1778329833000,-500.0,0.00013698,2]
[421913213,1778329833000,-500.0,0.00013698,2]
[421913222,1778329833000,-500.0,0.00013698,2]
[421913211,1778329833000,-500.0,0.00013698,2]